fUST/lending_fUST_20240615
["ID","MTS","AMOUNT","RATE_DAILY","PERIOD"]
[329503818,1718403062217,-500.0,0.00017607,2]
[329503819,1718403062249,-500.0,0.00017607,2]
[329503820,1718403062268,-500.0,0.00017807,2]
[329503821,1718403062282,-500.0,0.00017808,2]
[329503822,1718403062309,-504.86,0.00017808,2]
[329503823,1718403062319,-500.0,0.00017808,2]
[329503824,1718403062329,-500.0,0.00017808,2]
[329503825,1718403062364,-500.0,0.00017808,2]
[329503826,1718403062376,-500.0,0.00017808,2]
[329503827,1718403062421,-500.0,0.00017808,2]
[329503828,1718403062433,-500.0,0.00017808,2]
[329503829,1718403062444,-500.0,0.00017808,2]
[329503830,1718403062461,-500.0,0.00017808,2]
[329503831,1718403062471,-500.0,0.00017808,2]
[329503832,1718403062489,-151.0,0.00017808,2]
[329503833,1718403062501,-500.0,0.00017808,2]
[329503834,1718403062516,-500.0,0.00017808,2]
[329503835,1718403062528,-500.0,0.00017808,2]
[329503836,1718403062540,-513.75,0.00017808,2]
[329503837,1718403062571,-500.0,0.00017808,2]
[329503838,1718403062583,-690.11,0.00017808,2]
[329503839,1718403062595,-500.0,0.00017808,2]
[329503840,1718403062612,-151.0,0.00017808,2]
[329503841,1718403062623,-500.0,0.00017808,2]
[329503842,1718403062634,-1522.05,0.00017808,2]
[329503843,1718403062655,-531.51,0.00017808,2]
[329503844,1718403062682,-500.0,0.00017808,2]
[329503845,1718403062693,-500.0,0.00017808,2]
[329503846,1718403062724,-1193.75,0.00017808,2]
[329503847,1718403062739,-151.0,0.00017808,2]
[329503848,1718403062754,-595.24,0.00017808,2]
[329503849,1718403062801,-233.44,0.00017808,2]
[329503850,1718403062825,-151.0,0.00017808,2]
[329503851,1718403062916,-500.0,0.00017808,2]
[329503852,1718403062928,-7115.23,0.00017808,2]
[329503853,1718403062989,-3172.55,0.00017808,2]
[329503854,1718403063009,-1521.2,0.00017808,2]
[329503855,1718403063052,-500.0,0.00017808,2]
[329503856,1718403063065,-1831.45,0.00017808,2]
[329503857,1718403063092,-500.0,0.00017808,2]
[329503858,1718403063125,-500.0,0.00017808,2]
[329503859,1718403063137,-500.0,0.00017808,2]
[329503860,1718403063149,-500.0,0.00017808,2]
[329503861,1718403063161,-500.0,0.00017808,2]
[329503862,1718403063172,-519.68,0.00017808,2]
[329503863,1718403063205,-500.0,0.00017808,2]
[329503864,1718403063220,-7784.07,0.00017808,2]
[329503865,1718403063276,-500.0,0.00017808,2]
[329503866,1718403063332,-815.22,0.00017808,2]
[329503867,1718403063387,-151.0,0.00017808,2]
[329503868,1718403063413,-433.06,0.00017808,2]
[329503869,1718403063484,-1426.97,0.00017808,2]
[329503870,1718403063562,-512.15,0.00017808,2]
[329503871,1718403063600,-4081.05,0.00017808,2]
[329503872,1718403063614,-151.0,0.00017808,2]
[329503873,1718403063625,-500.0,0.00017808,2]
[329503874,1718403063728,-500.0,0.00017808,2]
[329503875,1718403063808,-236.46767737,0.00017808,2]
[329503876,1718403063820,-4210.57,0.00017808,2]
[329503877,1718403063855,-500.0,0.00017808,2]
[329503878,1718403063866,-500.0,0.00017808,2]
[329503879,1718403063927,-1802.21,0.00017808,2]
[329503880,1718403063998,-500.0,0.00017808,2]
[329503881,1718403064028,-500.0,0.00017999,2]
[329503882,1718403064039,-2766.15696949,0.00018,2]
[329503883,1718403064062,-476.83649049,0.00018,2]
[329503884,1718403064104,-31900.31698394,0.00018,2]
[329503885,1718403064180,-1355.95807405,0.00018,2]
[329503886,1718403064224,-877.05746171,0.00018,2]
[329503887,1718403064240,-35473.88841924,0.00018,2]
[329503888,1718403064305,-151.0,0.00018,2]
[329503889,1718403064376,-151.0,0.00018,2]
[329503890,1718403064400,-151.0,0.00018,2]
[329503891,1718403064422,-151.0,0.00018,2]
[329503892,1718403064434,-151.0,0.00018,2]
[329503894,1718403064470,-151.0,0.00018,2]
[329503896,1718403064520,-151.0,0.00018,2]
[329503898,1718403064532,-151.0,0.00018,2]
[329503902,1718403064613,-151.0,0.00018,2]
[329503903,1718403064641,-151.0,0.00018,2]
[329503905,1718403064660,-151.0,0.00018,2]
[329503908,1718403064680,-151.0,0.00018,2]
[329503909,1718403064712,-151.0,0.00018059,2]
[329503911,1718403064743,-420.0,0.00018077,2]
[329503917,1718403064835,-500.0,0.00018081,2]
[329503919,1718403064850,-359.05695255,0.00018082,2]
[329503921,1718403064885,-500.0,0.00018082,2]
[329503923,1718403064908,-500.0,0.00018082,2]
[329503926,1718403064938,-500.0,0.00018082,2]
[329503929,1718403064994,-500.0,0.00018082,2]
[329503930,1718403065040,-500.0,0.00018082,2]
[329503933,1718403065085,-548.24582605,0.00018082,2]
[329503934,1718403065116,-500.0,0.00018082,2]
[329503936,1718403065151,-500.0,0.00018082,2]
[329503939,1718403065179,-500.0,0.00018082,2]
[329503941,1718403065255,-500.0,0.00018082,2]
[329503944,1718403065275,-500.0,0.00018082,2]
[329503946,1718403065335,-513.75,0.00018082,2]
[329503948,1718403065449,-500.0,0.00018082,2]
[329503950,1718403065460,-690.11,0.00018082,2]
[329503952,1718403065497,-500.0,0.00018082,2]
[329503956,1718403065560,-268.995985,0.00018082,2]
[329503958,1718403065573,-500.0,0.00018082,2]
[329503960,1718403065620,-1522.05,0.00018082,2]
[329503962,1718403065683,-531.51,0.00018082,2]
[329503964,1718403065695,-500.0,0.00018082,2]
[329503966,1718403065719,-251.84,0.00018082,2]
[329503968,1718403065764,-1193.75,0.00018082,2]
[329503970,1718403065776,-151.0,0.00018082,2]
[329503972,1718403065846,-595.24,0.00018082,2]
[329503974,1718403065866,-151.0,0.00018082,2]
[329503975,1718403065902,-500.0,0.00018082,2]
[329503978,1718403065950,-7115.23,0.00018082,2]
[329503981,1718403065986,-3172.55,0.00018082,2]
[329503982,1718403066001,-158.873513,0.00018082,2]
[329503984,1718403066065,-1521.2,0.00018082,2]
[329503986,1718403066114,-151.0,0.00018082,2]
[329503987,1718403066144,-500.0,0.00018082,2]
[329503988,1718403066174,-1831.45,0.00018082,2]
[329503991,1718403066227,-500.0,0.00018082,2]
[329503993,1718403066265,-500.0,0.00018082,2]
[329503994,1718403066279,-500.0,0.00018082,2]
[329503995,1718403066295,-151.0,0.00018082,2]
[329503996,1718403066362,-500.0,0.00018082,2]
[329503998,1718403066383,-500.0,0.00018082,2]
[329504000,1718403066468,-519.68,0.00018082,2]
[329504001,1718403066480,-500.0,0.00018082,2]
[329504002,1718403066541,-7784.07,0.00018082,2]
[329504004,1718403066560,-500.0,0.00018082,2]
[329504005,1718403066574,-815.22,0.00018082,2]
[329504007,1718403066627,-1426.97,0.00018082,2]
[329504010,1718403066640,-512.15,0.00018082,2]
[329504013,1718403066694,-4081.05,0.00018082,2]
[329504015,1718403066705,-500.0,0.00018082,2]
[329504017,1718403066716,-500.0,0.00018082,2]
[329504018,1718403066751,-4210.57,0.00018082,2]
[329504020,1718403066772,-500.0,0.00018082,2]
[329504021,1718403066839,-500.0,0.00018082,2]
[329504022,1718403066868,-1802.21,0.00018082,2]
[329504024,1718403066892,-500.0,0.00018082,2]
[329504026,1718403066908,-600.0,0.00018125,2]
[329504029,1718403066964,-235.629,0.00018125,2]
[329504031,1718403066977,-153.647,0.00018125,2]
[329504033,1718403066987,-499.0,0.00018125,2]
[329504034,1718403067036,-1750.0,0.00018125,2]
[329504036,1718403067060,-151.0,0.00018196,2]
[329504039,1718403067184,-151.0,0.00018256,2]
[329504041,1718403067198,-808.39928114,0.00018314,2]
[329504043,1718403067210,-151.0,0.00018333,2]
[329504045,1718403067231,-500.0,0.00018355,2]
[329504047,1718403067243,-194.70906332,0.00018356,2]
[329504083,1718403068090,-213.17679622,0.00016437,7]
[329504085,1718403068115,-299.73312463,0.00016437,7]
[329504547,1718404235542,-224.834341,0.00015462,2]
[329504549,1718404235566,-165.982884,0.00016164,2]
[329504551,1718404235598,-577.73331035,0.00016338,2]
[329504552,1718404235610,-230.00874475,0.00016338,2]
[329504553,1718404235669,-1010.87973439,0.00016437,7]
[329504554,1718404235684,-326.51043978,0.00016437,7]
[329504555,1718404235695,-238.58491264,0.00016437,7]
[329504556,1718404235709,-300.0,0.00016437,2]
[329504557,1718404235729,-500.0,0.00016438,2]
[329504558,1718404235753,-500.0,0.00016438,2]
[329504559,1718404235768,-500.0,0.00016438,2]
[329504560,1718404235835,-500.0,0.00016438,2]
[329504561,1718404235855,-500.0,0.00016438,2]
[329504562,1718404235884,-500.0,0.00016438,2]
[329504563,1718404235952,-233.99007782,0.00016438,2]
[329504564,1718404235977,-500.0,0.00016438,2]
[329504565,1718404236027,-500.0,0.00016438,2]
[329504566,1718404236077,-500.0,0.00016438,2]
[329504567,1718404236121,-500.0,0.00016438,2]
[329504568,1718404236140,-500.0,0.00016438,2]
[329504569,1718404236152,-500.0,0.00016438,2]
[329504570,1718404236162,-500.0,0.00016438,2]
[329504571,1718404236173,-500.0,0.00016438,2]
[329504572,1718404236192,-500.0,0.00016438,2]
[329504573,1718404236212,-500.0,0.00016438,2]
[329504574,1718404236251,-500.0,0.00016438,2]
[329504575,1718404236284,-500.0,0.00016438,2]
[329504576,1718404236300,-500.0,0.00016438,2]
[329504577,1718404236345,-501.52842729,0.00016438,2]
[329504578,1718404236372,-500.0,0.00016438,2]
[329504579,1718404236424,-500.0,0.00016438,2]
[329504580,1718404236461,-500.0,0.00016438,2]
[329504581,1718404236519,-500.0,0.00016438,2]
[329504582,1718404236574,-500.0,0.00016438,2]
[329504583,1718404236616,-500.28117855,0.00016438,2]
[329504584,1718404236628,-500.0,0.00016438,2]
[329504585,1718404236644,-500.0,0.00016438,2]
[329504586,1718404236703,-500.0,0.00016438,2]
[329504587,1718404236772,-500.0,0.00016438,2]
[329504588,1718404236844,-500.0,0.00016438,2]
[329504589,1718404236875,-642.25321705,0.00016438,2]
[329504590,1718404236891,-322.77097963,0.00016438,2]
[329504591,1718404236925,-500.0,0.00016438,2]
[329504592,1718404236939,-500.0,0.00016438,2]
[329504593,1718404236957,-512.96315971,0.00016438,2]
[329504594,1718404236967,-500.0,0.00016438,2]
[329504595,1718404237020,-500.0,0.00016438,2]
[329504596,1718404237034,-500.0,0.00016438,2]
[329504597,1718404237076,-500.0,0.00016438,2]
[329504598,1718404237091,-500.0,0.00016438,2]
[329504599,1718404237104,-500.0,0.00016438,2]
[329504600,1718404237156,-500.0,0.00016438,2]
[329504601,1718404237175,-500.0,0.00016438,2]
[329504602,1718404237188,-500.0,0.00016438,2]
[329504603,1718404237212,-290.37787744,0.00016438,2]
[329504604,1718404237252,-500.0,0.00016438,2]
[329504605,1718404237263,-500.0,0.00016438,2]
[329504606,1718404237308,-518.01494891,0.00016438,2]
[329504607,1718404237352,-500.0,0.00016438,2]
[329504608,1718404237394,-500.0,0.00016438,2]
[329504609,1718404237407,-500.0,0.00016438,2]
[329504610,1718404237429,-500.0,0.00016438,2]
[329504611,1718404237447,-500.0,0.00016438,2]
[329504612,1718404237465,-500.0,0.00016438,2]
[329504613,1718404237518,-500.0,0.00016438,2]
[329504614,1718404237568,-500.0,0.00016438,2]
[329504615,1718404237596,-500.0,0.00016438,2]
[329504616,1718404237609,-500.0,0.00016438,2]
[329504617,1718404237622,-399.08780266,0.00016438,2]
[329504618,1718404237636,-500.0,0.00016438,2]
[329504619,1718404237664,-500.0,0.00016438,2]
[329504620,1718404237701,-500.0,0.00016438,2]
[329504621,1718404237745,-500.0,0.00016438,2]
[329504622,1718404237786,-136.76582596,0.00016438,2]
[329504628,1718404242479,-363.98047894,0.00016438,2]
[329504629,1718404242533,-500.0,0.00016438,2]
[329504630,1718404242592,-500.0,0.00016438,2]
[329504631,1718404242604,-501.64614374,0.00016438,2]
[329504632,1718404242617,-500.0,0.00016438,2]
[329504633,1718404242657,-500.0,0.00016438,2]
[329504634,1718404242675,-500.0,0.00016438,2]
[329504635,1718404242687,-500.0,0.00016438,2]
[329504636,1718404242708,-500.0,0.00016438,2]
[329504637,1718404242727,-525.85647895,0.00016438,2]
[329504638,1718404242757,-500.0,0.00016438,2]
[329504639,1718404242773,-500.0,0.00016438,2]
[329504640,1718404242785,-500.0,0.00016438,2]
[329504641,1718404242798,-500.0,0.00016438,2]
[329504642,1718404242809,-317.09866361,0.00016438,2]
[329504643,1718404242820,-30.36065831,0.00016438,2]
[329504644,1718404242885,-469.63934169,0.00016438,2]
[329504645,1718404242897,-500.0,0.00016438,2]
[329504646,1718404242910,-500.0,0.00016438,2]
[329504647,1718404242959,-37.66306529,0.00016438,2]
[329504648,1718404242987,-301.77169758,0.00016438,2]
[329504649,1718404243000,-500.0,0.00016438,2]
[329504650,1718404243166,-259.97692014,0.00016438,2]
[329504651,1718404243187,-500.0,0.00016438,2]
[329504652,1718404243199,-500.0,0.00016438,2]
[329504653,1718404243214,-500.0,0.00016438,2]
[329504654,1718404243229,-500.0,0.00016438,2]
[329504655,1718404243268,-512.58217416,0.00016438,2]
[329504656,1718404243282,-500.0,0.00016438,2]
[329504657,1718404243326,-500.0,0.00016438,2]
[329504658,1718404243354,-500.0,0.00016438,2]
[329504659,1718404243408,-510.48259035,0.00016438,2]
[329504660,1718404243433,-500.0,0.00016438,2]
[329504661,1718404243456,-500.0,0.00016438,2]
[329504662,1718404243468,-500.0,0.00016438,2]
[329504663,1718404243492,-500.0,0.00016438,2]
[329504664,1718404243512,-346.20373493,0.00016438,2]
[329504665,1718404243545,-500.0,0.00016438,2]
[329504666,1718404243557,-500.0,0.00016438,2]
[329504667,1718404243568,-500.0,0.00016438,2]
[329504668,1718404243579,-428.39745306,0.00016438,2]
[329504669,1718404243608,-500.0,0.00016438,2]
[329504670,1718404243619,-236.5197406,0.00016438,2]
[329504671,1718404243634,-595.23,0.00016438,2]
[329504672,1718404243648,-505.27104949,0.00016438,2]
[329504673,1718404243704,-500.0,0.00016438,2]
[329504674,1718404243717,-501.42818865,0.00016438,2]
[329504675,1718404243728,-500.0,0.00016438,2]
[329504676,1718404243742,-506.08390573,0.00016438,2]
[329504677,1718404243765,-500.0,0.00016438,2]
[329504678,1718404243776,-208.50340544,0.00016438,2]
[329504679,1718404243805,-500.0,0.00016438,2]
[329504680,1718404243817,-500.0,0.00016438,2]
[329504681,1718404243828,-262.21290687,0.00016438,2]
[329504682,1718404243876,-500.0,0.00016438,2]
[329504683,1718404243889,-274.78572379,0.00016438,2]
[329504684,1718404243916,-500.0,0.00016438,2]
[329504685,1718404243948,-500.0,0.00016438,2]
[329504686,1718404243985,-500.0,0.00016438,2]
[329504687,1718404244013,-500.0,0.00016438,2]
[329504688,1718404244047,-500.0,0.00016438,2]
[329504689,1718404244095,-500.0,0.00016438,2]
[329504690,1718404244137,-500.0,0.00016438,2]
[329504691,1718404244157,-500.0,0.00016438,2]
[329504692,1718404244171,-500.0,0.00016438,2]
[329504693,1718404244201,-500.0,0.00016438,2]
[329504694,1718404244215,-500.0,0.00016438,2]
[329504695,1718404244243,-500.0,0.00016438,2]
[329504696,1718404244279,-500.0,0.00016438,2]
[329504697,1718404244293,-500.0,0.00016438,2]
[329504698,1718404244311,-500.0,0.00016438,2]
[329504700,1718404244389,-500.0,0.00016438,2]
[329504703,1718404244439,-500.0,0.00016438,2]
[329504705,1718404244452,-500.0,0.00016438,2]
[329504707,1718404244485,-500.0,0.00016438,2]
[329504709,1718404244508,-500.0,0.00016438,2]
[329504712,1718404244597,-500.0,0.00016438,2]
[329504714,1718404244615,-391.49373107,0.00016438,2]
[329504716,1718404244646,-500.0,0.00016438,2]
[329504717,1718404244674,-500.0,0.00016438,2]
[329504718,1718404244716,-3579.38,0.00016438,2]
[329504720,1718404244760,-1369.59,0.00016438,2]
[329504722,1718404244845,-329.91393294,0.00016438,2]
[329504725,1718404244870,-500.0,0.00016438,2]
[329504726,1718404244892,-500.0,0.00016438,2]
[329504727,1718404244911,-500.0,0.00016438,2]
[329504729,1718404244932,-500.0,0.00016438,2]
[329504730,1718404244944,-500.0,0.00016438,2]
[329504732,1718404244992,-653.38,0.00016438,2]
[329504734,1718404245005,-500.0,0.00016438,2]
[329504736,1718404245025,-505.79444727,0.00016438,2]
[329504737,1718404245036,-1148.72,0.00016438,2]
[329504739,1718404245064,-1258.59,0.00016438,2]
[329504740,1718404245094,-500.0,0.00016438,2]
[329504741,1718404245125,-500.0,0.00016438,2]
[329504742,1718404245169,-500.0,0.00016438,2]
[329504743,1718404245204,-500.0,0.00016438,2]
[329504745,1718404245232,-500.0,0.00016438,2]
[329504747,1718404245258,-500.0,0.00016438,2]
[329504748,1718404245275,-1581.89,0.00016438,2]
[329504749,1718404245329,-500.0,0.00016438,2]
[329504750,1718404245342,-500.0,0.00016438,2]
[329504751,1718404245353,-941.12,0.00016438,2]
[329504752,1718404245392,-500.0,0.00016438,2]
[329504753,1718404245421,-500.0,0.00016438,2]
[329504754,1718404245435,-500.0,0.00016438,2]
[329504755,1718404245450,-500.0,0.00016438,2]
[329504756,1718404245462,-612.8838084,0.00016438,2]
[329504757,1718404245516,-500.0,0.00016438,2]
[329504758,1718404245569,-500.0,0.00016438,2]
[329504759,1718404245582,-500.0,0.00016438,2]
[329504760,1718404245601,-500.0,0.00016438,2]
[329504761,1718404245617,-500.0,0.00016438,2]
[329504762,1718404245640,-500.0,0.00016438,2]
[329504763,1718404245652,-2552.72,0.00016438,2]
[329504764,1718404245671,-500.0,0.00016438,2]
[329504765,1718404245681,-553.03,0.00016438,2]
[329504766,1718404245709,-500.0,0.00016438,2]
[329504767,1718404245728,-500.0,0.00016438,2]
[329504768,1718404245749,-1117.26,0.00016438,2]
[329504769,1718404245760,-500.0,0.00016438,2]
[329504770,1718404245772,-500.0,0.00016438,2]
[329504771,1718404245783,-500.0,0.00016438,2]
[329504772,1718404245796,-500.0,0.00016438,2]
[329504773,1718404245823,-500.0,0.00016438,2]
[329504774,1718404245841,-504.2191618,0.00016438,2]
[329504775,1718404245854,-500.0,0.00016438,2]
[329504776,1718404245893,-500.0,0.00016438,2]
[329504777,1718404245909,-500.0,0.00016438,2]
[329504778,1718404245940,-500.0,0.00016438,2]
[329504779,1718404245963,-500.0,0.00016438,2]
[329504780,1718404245984,-500.0,0.00016438,2]
[329504781,1718404246032,-500.0,0.00016438,2]
[329504782,1718404246043,-500.0,0.00016438,2]
[329504783,1718404246055,-500.0,0.00016438,2]
[329504784,1718404246086,-500.0,0.00016438,2]
[329504785,1718404246144,-3147.83,0.00016438,2]
[329504787,1718404246167,-500.0,0.00016438,2]
[329504788,1718404246204,-3566.16,0.00016438,2]
[329504789,1718404246217,-500.0,0.00016711,2]
[329504790,1718404246228,-500.0,0.00016711,2]
[329504791,1718404246292,-500.0,0.00016711,2]
[329504792,1718404246373,-500.0,0.00016711,2]
[329504793,1718404246386,-353.79562145,0.00016712,2]
[329504794,1718404246413,-500.0,0.00016712,2]
[329504795,1718404246430,-251.91,0.00016712,2]
[329504796,1718404246469,-500.0,0.00016712,2]
[329504797,1718404246485,-500.0,0.00016712,2]
[329504798,1718404246496,-265.42972215,0.00016712,2]
[329504799,1718404246510,-500.0,0.00016712,2]
[329504800,1718404246536,-500.0,0.00016712,2]
[329504801,1718404246547,-638.9216037,0.00016712,2]
[329504802,1718404246585,-571.3620464,0.00016712,2]
[329504803,1718404246597,-500.0,0.00016712,2]
[329504804,1718404246609,-500.0,0.00016712,2]
[329504805,1718404246619,-500.0,0.00016712,2]
[329504806,1718404246631,-500.0,0.00016712,2]
[329504807,1718404246649,-500.0,0.00016712,2]
[329504808,1718404246660,-500.0,0.00016712,2]
[329504809,1718404246671,-500.0,0.00016712,2]
[329504810,1718404246748,-500.0,0.00016712,2]
[329504811,1718404246774,-500.0,0.00016712,2]
[329504812,1718404246785,-595.23,0.00016712,2]
[329504813,1718404246817,-500.0,0.00016712,2]
[329504814,1718404246836,-500.0,0.00016712,2]
[329504815,1718404246851,-500.0,0.00016712,2]
[329504816,1718404246862,-500.0,0.00016712,2]
[329504817,1718404246877,-500.0,0.00016712,2]
[329504818,1718404246897,-500.0,0.00016712,2]
[329504819,1718404246956,-500.0,0.00016712,2]
[329504820,1718404246980,-500.0,0.00016712,2]
[329504821,1718404246992,-500.0,0.00016712,2]
[329504822,1718404247040,-500.0,0.00016712,2]
[329504823,1718404247053,-500.0,0.00016712,2]
[329504824,1718404247080,-3579.38,0.00016712,2]
[329504825,1718404247112,-1369.59,0.00016712,2]
[329504826,1718404247148,-500.0,0.00016712,2]
[329504827,1718404247172,-500.0,0.00016712,2]
[329504828,1718404247186,-500.0,0.00016712,2]
[329504829,1718404247200,-500.0,0.00016712,2]
[329504830,1718404247214,-653.38,0.00016712,2]
[329504831,1718404247268,-1148.72,0.00016712,2]
[329504832,1718404247301,-1258.59,0.00016712,2]
[329504833,1718404247314,-500.0,0.00016712,2]
[329504834,1718404247342,-1581.89,0.00016712,2]
[329504835,1718404247353,-941.12,0.00016712,2]
[329504836,1718404247364,-624.52,0.00016712,2]
[329504837,1718404247376,-500.0,0.00016712,2]
[329504838,1718404247388,-500.0,0.00016712,2]
[329504839,1718404247402,-500.0,0.00016712,2]
[329504840,1718404247421,-2552.72,0.00016712,2]
[329504841,1718404247452,-553.03,0.00016712,2]
[329504842,1718404247512,-500.0,0.00016712,2]
[329504843,1718404247528,-1117.26,0.00016712,2]
[329504844,1718404247542,-500.0,0.00016712,2]
[329504845,1718404247564,-162.70632604,0.00016712,2]
[329504846,1718404247581,-1943.74277519,0.00016712,2]
[329504848,1718404249679,-1204.08722481,0.00016712,2]
[329504850,1718404249714,-500.0,0.00016712,2]
[329504852,1718404249735,-3566.16,0.00016712,2]
[329504853,1718404249756,-500.0,0.00016985,2]
[329504854,1718404249780,-500.0,0.00016985,2]
[329504855,1718404249793,-26118.77854087,0.00016986,15]
[329504856,1718404249868,-6523.66126937,0.00016986,15]
[329504857,1718404249896,-24386.23866156,0.00016986,15]
[329504858,1718404249924,-1432.28524259,0.00016986,15]
[329504906,1718404256834,-746.20018376,0.00016986,15]
[329504950,1718404257578,-500.0,0.00016438,2]
[329504952,1718404257594,-17849.25873113,0.00016986,15]
[329504954,1718404257605,-500.0,0.00016986,2]
[329504955,1718404257617,-500.0,0.00016986,2]
[329504957,1718404257632,-500.0,0.00016986,2]
[329504959,1718404257643,-289.16,0.00016986,2]
[329504961,1718404257684,-500.0,0.00016986,2]
[329504963,1718404257696,-500.0,0.00016986,2]
[329504965,1718404257721,-500.0,0.00016986,2]
[329504968,1718404257752,-595.23,0.00016986,2]
[329504971,1718404257788,-500.0,0.00016986,2]
[329504972,1718404257805,-500.0,0.00016986,2]
[329504974,1718404257832,-500.0,0.00016986,2]
[329504976,1718404257843,-500.0,0.00016986,2]
[329504978,1718404257878,-3579.38,0.00016986,2]
[329504980,1718404257895,-1369.59,0.00016986,2]
[329504982,1718404257910,-500.0,0.00016986,2]
[329504985,1718404257956,-500.0,0.00016986,2]
[329504987,1718404257968,-500.0,0.00016986,2]
[329504989,1718404257998,-500.0,0.00016986,2]
[329504991,1718404258028,-653.38,0.00016986,2]
[329504992,1718404258044,-1148.72,0.00016986,2]
[329504994,1718404258066,-1258.59,0.00016986,2]
[329504996,1718404258086,-500.0,0.00016986,2]
[329504998,1718404258099,-1581.89,0.00016986,2]
[329505000,1718404258117,-941.12,0.00016986,2]
[329505002,1718404258128,-500.0,0.00016986,2]
[329505004,1718404258148,-567.28,0.00016986,2]
[329505006,1718404258162,-500.0,0.00016986,2]
[329505008,1718404258172,-2552.72,0.00016986,2]
[329505010,1718404258182,-553.03,0.00016986,2]
[329505012,1718404258194,-500.0,0.00016986,2]
[329505014,1718404258248,-1117.26,0.00016986,2]
[329505016,1718404258262,-500.0,0.00016986,2]
[329505018,1718404258276,-3147.83,0.00016986,2]
[329505021,1718404258305,-500.0,0.00016986,2]
[329505022,1718404258349,-3566.16,0.00016986,2]
[329505024,1718404258381,-500.0,0.00017259,2]
[329505026,1718404258412,-500.0,0.00017259,2]
[329505028,1718404258429,-500.0,0.00017259,2]
[329505030,1718404258440,-500.0,0.00017259,2]
[329505032,1718404258457,-500.0,0.00017259,2]
[329505034,1718404258475,-500.0,0.0001726,2]
[329505036,1718404258496,-363.04508795,0.0001726,2]
[329505039,1718404258516,-502.39,0.0001726,2]
[329505040,1718404258528,-500.0,0.0001726,2]
[329505042,1718404258546,-500.0,0.0001726,2]
[329505044,1718404258558,-500.0,0.0001726,2]
[329505046,1718404258568,-595.23,0.0001726,2]
[329505047,1718404258600,-500.0,0.0001726,2]
[329505050,1718404258612,-500.0,0.0001726,2]
[329505052,1718404258627,-500.0,0.0001726,2]
[329505054,1718404258644,-500.0,0.0001726,2]
[329505055,1718404258661,-1856.7633819,0.0001726,2]
[329505329,1718404901354,3121.53793359,9.999e-05,4]
[329505357,1718405436067,-676.95854,0.00015397,2]
[329505358,1718405436082,-300.0,0.00015505,2]
[329505359,1718405436093,-4178.84146,0.00015506,2]
[329505360,1718405436132,-553.4887,0.00015506,2]
[329505363,1718405443362,-4088.54921446,0.00015506,2]
[329505365,1718405444156,-521.20784924,0.00015506,2]
[329505366,1718405444174,-165.317226,0.00016164,2]
[329505367,1718405444190,-462.19992976,0.00016436,2]
[329505368,1718405444236,-205.07114751,0.00016436,2]
[329505369,1718405444263,-216.1011384,0.00016437,4]
[329505370,1718405444274,-500.0,0.00016438,2]